fUST/lending_fUST_20251118
["ID","MTS","AMOUNT","RATE_DAILY","PERIOD"]
[394268308,1763413854710,-500.0,0.00042067,2]
[394268309,1763413854720,-500.0,0.00042067,2]
[394268310,1763413854729,-500.0,0.00042067,2]
[394268311,1763413854738,-500.0,0.00042191,7]
[394268312,1763413854747,-810.65,0.00042191,2]
[394268313,1763413854756,-500.0,0.00042191,120]
[394268314,1763413854765,-457.43,0.00042191,120]
[394268315,1763413854774,-1450.45,0.00042191,120]
[394268316,1763413854783,-500.0,0.00042191,120]
[394268317,1763413854792,-500.0,0.00042191,120]
[394268318,1763413854805,-500.0,0.00042191,7]
[394268319,1763413854815,-500.0,0.00042191,120]
[394268320,1763413854824,-500.0,0.00042191,120]
[394268321,1763413854835,-799.17,0.00042191,60]
[394268322,1763413854858,-500.0,0.00042191,120]
[394268323,1763413854880,-500.0,0.00042191,30]
[394268324,1763413854902,-500.0,0.00042191,120]
[394268325,1763413854922,-151.0,0.00042191,120]
[394268326,1763413854943,-500.0,0.00042191,120]
[394268327,1763413854966,-500.0,0.00042191,7]
[394268328,1763413854986,-169.485445,0.00042191,120]
[394268329,1763413855007,-169.485445,0.00042191,120]
[394268330,1763413855032,-169.485445,0.00042191,120]
[394268331,1763413855055,-500.0,0.00042191,120]
[394268332,1763413855077,-169.485445,0.00042191,120]
[394268333,1763413855099,-151.0,0.00042191,120]
[394268334,1763413855121,-1000.0,0.00042191,2]
[394268335,1763413855142,-500.0,0.00042191,2]
[394268336,1763413855163,-523.03,0.00042191,7]
[394268337,1763413855176,-1434.87,0.00042191,120]
[394268338,1763413855186,-872.54,0.00042191,120]
[394268339,1763413855195,-779.61,0.00042191,120]
[394268340,1763413855204,-500.0,0.00042191,120]
[394268341,1763413855214,-500.0,0.00042191,120]
[394268342,1763413855223,-519.42,0.00042191,120]
[394268343,1763413855233,-4019.48,0.00042191,3]
[394268344,1763413855243,-606.28,0.00042191,120]
[394268345,1763413855252,-1000.0,0.00042191,2]
[394268346,1763413855261,-189.93964682,0.000422,120]
[394268347,1763413855271,-215.3498395,0.000422,120]
[394268348,1763413855280,-8491.85311381,0.00042365,2]
[394268349,1763413855291,-3713.7592553,0.00042365,2]
[394268350,1763413855300,-157.619091,0.00042375,2]
[394268351,1763413855309,-500.0,0.00042398,30]
[394268352,1763413855319,-500.0,0.00042465,7]
[394268353,1763413855329,-810.65,0.00042465,2]
[394268354,1763413855339,-500.0,0.00042465,120]
[394268355,1763413855348,-1450.45,0.00042465,120]
[394268356,1763413855357,-500.0,0.00042465,120]
[394268357,1763413855366,-500.0,0.00042465,120]
[394268358,1763413855376,-500.0,0.00042465,7]
[394268359,1763413855385,-500.0,0.00042465,120]
[394268360,1763413855395,-500.0,0.00042465,120]
[394268361,1763413855404,-799.17,0.00042465,60]
[394268362,1763413855414,-500.0,0.00042465,120]
[394268363,1763413855423,-500.0,0.00042465,30]
[394268364,1763413855433,-500.0,0.00042465,120]
[394268365,1763413855442,-500.0,0.00042465,7]
[394268366,1763413855455,-500.0,0.00042465,120]
[394268367,1763413855464,-1000.0,0.00042465,2]
[394268368,1763413855473,-500.0,0.00042465,2]
[394268369,1763413855483,-523.03,0.00042465,7]
[394268370,1763413855492,-1434.87,0.00042465,120]
[394268371,1763413855502,-872.54,0.00042465,120]
[394268372,1763413855511,-779.61,0.00042465,120]
[394268373,1763413855521,-500.0,0.00042465,120]
[394268374,1763413855531,-200.97,0.00042465,120]
[394268375,1763413855541,-519.42,0.00042465,120]
[394268376,1763413855550,-4019.48,0.00042465,3]
[394268377,1763413855560,-155.24710094,0.00042465,2]
[394268378,1763413855807,-4e-08,0.000336,31]
[394268379,1763413855818,-725.26206496,0.000336,31]
[394268380,1763413855827,-725.262065,0.00040239,120]
[394268381,1763413855836,-500.0,0.00041095,120]
[394268382,1763413855845,-57.01707011,0.00041095,120]
[394268383,1763413855868,-668.24499489,0.00041095,120]
[394268384,1763413855877,-725.262065,0.00041369,120]
[394268385,1763413855886,-844.75289906,0.00042465,2]
[394268386,1763413855895,-2864.15,0.000425,14]
[394268387,1763413855905,-515.48,0.00042502,2]
[394268388,1763413855918,-157.619091,0.00042537,60]
[394268389,1763413855927,-715.43,0.000426,30]
[394268390,1763413855936,-504.04867532,0.00042624,2]
[394268391,1763413855946,-151.0,0.00042626,120]
[394268392,1763413855955,-151.164211,0.00042626,15]
[394268393,1763413855965,-151.164211,0.00042626,15]
[394268394,1763413855974,-151.164211,0.00042626,15]
[394268395,1763413855985,-151.164211,0.00042626,15]
[394268396,1763413855994,-1239.88,0.000427,14]
[394268397,1763413856003,-500.0,0.00042739,7]
[394268398,1763413856012,-810.65,0.00042739,2]
[394268399,1763413856020,-500.0,0.00042739,120]
[394268400,1763413856030,-1450.45,0.00042739,120]
[394268401,1763413856039,-500.0,0.00042739,120]
[394268402,1763413856049,-500.0,0.00042739,120]
[394268403,1763413856058,-403.53,0.00042739,120]
[394268404,1763413856069,-500.0,0.00042739,120]
[394268405,1763413856078,-799.17,0.00042739,60]
[394268406,1763413856087,-500.0,0.00042739,30]
[394268407,1763413856097,-272.64454964,0.00042739,120]
[394268408,1763413856106,-500.0,0.00042739,7]
[394268409,1763413856115,-500.0,0.00042739,120]
[394268410,1763413856124,-500.0,0.00042739,2]
[394268411,1763413856133,-108.04623462,0.00042739,7]
[394268412,1763413857554,500.00057394,0.00024953,2]
[394268413,1763413857575,-4499.99942606,0.00024953,2]
[394268414,1763413857589,-739.65,0.0003451,10]
[394268415,1763413857599,-414.98376538,0.00042739,7]
[394268416,1763413857608,-1434.87,0.00042739,120]
[394268417,1763413857618,-872.54,0.00042739,120]
[394268418,1763413857627,-779.61,0.00042739,120]
[394268419,1763413857636,-519.42,0.00042739,120]
[394268420,1763413857645,-4019.48,0.00042739,3]
[394268421,1763413857656,-197.53,0.00043,14]
[394268422,1763413857665,-500.0,0.00043013,7]
[394268423,1763413857674,-810.65,0.00043013,2]
[394268424,1763413857683,-500.0,0.00043013,120]
[394268425,1763413857692,-212.78927189,0.00043013,120]
[394268426,1763413857703,-1237.66072811,0.00043013,120]
[394268427,1763413857712,-500.0,0.00043013,120]
[394268428,1763413857721,-244.18,0.00043013,120]
[394268429,1763413857731,-500.0,0.00043013,120]
[394268430,1763413857740,-799.17,0.00043013,60]
[394268431,1763413857749,-500.0,0.00043013,30]
[394268432,1763413857758,-239.38596254,0.00043013,7]
[394268433,1763413857767,-500.0,0.00043013,120]
[394268434,1763413857776,-500.0,0.00043013,2]
[394268435,1763413857785,-523.03,0.00043013,7]
[394268436,1763413857795,-1434.87,0.00043013,120]
[394268437,1763413857803,-872.54,0.00043013,120]
[394268438,1763413857813,-779.61,0.00043013,120]
[394268439,1763413857822,-519.42,0.00043013,120]
[394268440,1763413857831,-4019.48,0.00043013,3]
[394268441,1763413857841,-157.619091,0.00043016,60]
[394268442,1763413857850,-500.0,0.00043287,7]
[394268443,1763413857859,-810.65,0.00043287,2]
[394268444,1763413857868,-500.0,0.00043287,120]
[394268445,1763413857877,-1450.45,0.00043287,120]
[394268446,1763413857886,-500.0,0.00043287,120]
[394268447,1763413857895,-500.0,0.00043287,120]
[394268448,1763413857904,-799.17,0.00043287,60]
[394268449,1763413857917,-422.39503807,0.00043287,30]
[394268450,1763413857926,-270.45,0.00043287,120]
[394268451,1763413857935,-500.0,0.00043287,2]
[394268452,1763413857998,-523.03,0.00043287,7]
[394268453,1763413858008,-1434.87,0.00043287,120]
[394268454,1763413858017,-872.54,0.00043287,120]
[394268455,1763413858026,-779.61,0.00043287,120]
[394268456,1763413858036,-519.42,0.00043287,120]
[394268457,1763413858045,-4019.48,0.00043287,3]
[394268458,1763413858054,-157.619091,0.00043299,10]
[394268459,1763413858063,-3075.86,0.000434,14]
[394268460,1763413858072,-189.93964682,0.000435,120]
[394268461,1763413858083,-393.34,0.000435,14]
[394268462,1763413858092,-500.0,0.00043561,7]
[394268463,1763413858102,-810.65,0.00043561,2]
[394268464,1763413858111,-500.0,0.00043561,120]
[394268465,1763413858120,-1450.45,0.00043561,120]
[394268466,1763413858130,-500.0,0.00043561,120]
[394268467,1763413858139,-500.93024502,0.00043561,120]
[394268468,1763413858149,-799.17,0.00043561,60]
[394268469,1763413858159,-500.0,0.00043561,2]
[394268470,1763413858168,-523.03,0.00043561,7]
[394268471,1763413858178,-1434.87,0.00043561,120]
[394268472,1763413858187,-872.54,0.00043561,120]
[394268473,1763413858197,-779.61,0.00043561,120]
[394268474,1763413858207,-519.42,0.00043561,120]
[394268475,1763413858216,-4019.48,0.00043561,3]
[394268476,1763413858226,-500.0,0.00043703,30]
[394268477,1763413858235,-1000.0,0.000438,90]
[394268478,1763413858244,-1000.0,0.000438,90]
[394268479,1763413858254,-500.0,0.00043835,7]
[394268480,1763413858264,-810.65,0.00043835,2]
[394268481,1763413858274,-500.0,0.00043835,120]
[394268482,1763413858283,-1450.45,0.00043835,120]
[394268483,1763413858292,-500.0,0.00043835,120]
[394268484,1763413858301,-799.17,0.00043835,60]
[394268485,1763413858311,-500.0,0.00043835,2]
[394268486,1763413858320,-523.03,0.00043835,7]
[394268487,1763413858331,-1434.87,0.00043835,120]
[394268488,1763413858341,-872.54,0.00043835,120]
[394268489,1763413858351,-779.61,0.00043835,120]
[394268490,1763413858360,-151.0,0.00043835,120]
[394268491,1763413858369,-151.0,0.00043835,120]
[394268492,1763413858379,-151.0,0.00043835,120]
[394268493,1763413858388,-519.42,0.00043835,120]
[394268494,1763413858397,-4019.48,0.00043835,3]
[394268495,1763413858407,-151.0,0.00043835,120]
[394268496,1763413858416,-151.0,0.00043835,120]
[394268497,1763413858426,-151.0,0.00043835,120]
[394268498,1763413858435,-151.0,0.00043835,120]
[394268499,1763413858444,-151.0,0.00043835,120]
[394268500,1763413858453,-151.0,0.00043835,120]
[394268501,1763413858463,-725.262065,0.00043835,120]
[394268502,1763413858473,-725.262065,0.00043835,120]
[394268503,1763413858482,-725.262065,0.00043835,120]
[394268504,1763413858492,-725.26206924,0.00043835,120]
[394268505,1763413858501,-524.45601,0.00043927,2]
[394268506,1763413858510,-731.71,0.00044,30]
[394268507,1763413858519,-1395.48,0.00044,14]
[394268508,1763413858529,-500.0,0.00044109,7]
[394268509,1763413858539,-810.65,0.00044109,2]
[394268510,1763413858548,-500.0,0.00044109,120]
[394268511,1763413858557,-1450.45,0.00044109,120]
[394268512,1763413858567,-500.0,0.00044109,120]
[394268513,1763413858576,-207.55,0.00044109,30]
[394268514,1763413858585,-799.17,0.00044109,60]
[394268515,1763413858594,-500.0,0.00044109,2]
[394268516,1763413858604,-523.03,0.00044109,7]
[394268517,1763413858613,-1434.87,0.00044109,120]
[394268518,1763413858623,-872.54,0.00044109,120]
[394268519,1763413858632,-151.0,0.00044109,120]
[394268520,1763413858641,-151.0,0.00044109,120]
[394268521,1763413858651,-151.0,0.00044109,120]
[394268522,1763413858660,-779.61,0.00044109,120]
[394268523,1763413858670,-151.0,0.00044109,120]
[394268524,1763413858680,-519.42,0.00044109,120]
[394268525,1763413858690,-4019.48,0.00044109,3]
[394268526,1763413858699,-500.0,0.00044383,7]
[394268527,1763413858710,-810.65,0.00044383,2]
[394268528,1763413858719,-500.0,0.00044383,120]
[394268529,1763413858728,-1450.45,0.00044383,120]
[394268530,1763413858738,-500.0,0.00044383,120]
[394268531,1763413858748,-280.502859,0.00044383,120]
[394268532,1763413858757,-280.502859,0.00044383,120]
[394268533,1763413858766,-151.0,0.00044383,120]
[394268534,1763413858775,-280.502859,0.00044383,120]
[394268535,1763413858784,-151.0,0.00044383,120]
[394268536,1763413858793,-280.502859,0.00044383,120]
[394268537,1763413858802,-151.0,0.00044383,120]
[394268538,1763413858811,-151.0,0.00044383,120]
[394268539,1763413858820,-234.931927,0.00044383,120]
[394268540,1763413858830,-799.17,0.00044383,60]
[394268541,1763413858839,-500.0,0.00044383,2]
[394268542,1763413858848,-523.03,0.00044383,7]
[394268543,1763413858857,-1434.87,0.00044383,120]
[394268544,1763413858867,-872.54,0.00044383,120]
[394268545,1763413858875,-779.61,0.00044383,120]
[394268546,1763413858885,-519.42,0.00044383,120]
[394268547,1763413858894,-4019.48,0.00044383,3]
[394268548,1763413858904,-414.38313642,0.00044537,4]
[394268549,1763413858918,-595.86342371,0.00044539,4]
[394268550,1763413858927,-395.5698071,0.00044548,30]
[394268551,1763413858987,-395.5698071,0.00044548,30]
[394268552,1763413858999,-395.5698071,0.00044548,30]
[394268553,1763413859009,-500.0,0.0004463,30]
[394268554,1763413859019,-500.0,0.00044657,7]
[394268555,1763413859029,-810.65,0.00044657,2]
[394268556,1763413859039,-500.0,0.00044657,120]
[394268557,1763413859048,-1450.45,0.00044657,120]
[394268558,1763413859059,-500.0,0.00044657,120]
[394268559,1763413859070,-799.17,0.00044657,60]
[394268560,1763413859080,-477.8,0.00044657,2]
[394268561,1763413859089,-523.03,0.00044657,7]
[394268562,1763413859099,-1434.87,0.00044657,120]
[394268563,1763413859109,-872.54,0.00044657,120]
[394268564,1763413859118,-779.61,0.00044657,120]
[394268565,1763413859128,-519.42,0.00044657,120]
[394268566,1763413859137,-4019.48,0.00044657,3]
[394268567,1763413859147,-189.93964682,0.000448,120]
[394268568,1763413859155,-500.0,0.00044931,7]
[394268569,1763413859165,-810.65,0.00044931,2]
[394268570,1763413859175,-500.0,0.00044931,120]
[394268571,1763413859184,-1450.45,0.00044931,120]
[394268572,1763413859194,-590.85,0.00044931,120]
[394268573,1763413859203,-799.17,0.00044931,60]
[394268574,1763413859213,-523.03,0.00044931,7]
[394268575,1763413859222,-1434.87,0.00044931,120]
[394268576,1763413859231,-872.54,0.00044931,120]
[394268577,1763413859240,-779.61,0.00044931,120]
[394268578,1763413859249,-519.42,0.00044931,120]
[394268579,1763413859259,-4019.48,0.00044931,3]
[394268580,1763413859269,-290.3777622,0.00044959,30]
[394268581,1763413859278,-153.0,0.00044959,30]
[394268582,1763413859288,-500.0,0.00045205,7]
[394268583,1763413859297,-810.65,0.00045205,2]
[394268584,1763413859305,-500.0,0.00045205,120]
[394268585,1763413859315,-1450.45,0.00045205,120]
[394268586,1763413859324,-799.17,0.00045205,60]
[394268587,1763413859334,-151.0,0.00045205,120]
[394268588,1763413859344,-174.291241,0.00045205,120]
[394268589,1763413859354,-197.634095,0.00045205,120]
[394268590,1763413859364,-197.634095,0.00045205,120]
[394268591,1763413859373,-197.634095,0.00045205,120]
[394268592,1763413859382,-197.63409734,0.00045205,120]
[394268593,1763413859391,-523.03,0.00045205,7]
[394268594,1763413859401,-167.561636,0.00045205,120]
[394268595,1763413859410,-167.561636,0.00045205,120]
[394268596,1763413859420,-1434.87,0.00045205,120]
[394268597,1763413859429,-167.561636,0.00045205,120]
[394268598,1763413859439,-167.561643,0.00045205,120]
[394268599,1763413859448,-872.54,0.00045205,120]
[394268600,1763413859457,-779.61,0.00045205,120]
[394268601,1763413859466,-519.42,0.00045205,120]
[394268602,1763413859476,-4019.48,0.00045205,3]
[394268603,1763413859485,-618.58,0.00045336,2]
[394268604,1763413859494,-151.0,0.000454,22]
[394268605,1763413859503,-500.0,0.00045479,7]
[394268606,1763413859512,-810.65,0.00045479,2]
[394268607,1763413859521,-500.0,0.00045479,120]
[394268608,1763413859530,-499.02400556,0.00045479,120]
[394268609,1763413859539,-1450.45,0.00045479,120]
[394268610,1763413859548,-207.55,0.00045479,30]
[394268611,1763413859557,-799.17,0.00045479,60]
[394268612,1763413859566,-151.0,0.00045479,2]
[394268613,1763413859576,-151.0,0.00045479,2]
[394268614,1763413859585,-151.0,0.00045479,2]
[394268615,1763413859594,-151.0,0.00045479,120]
[394268616,1763413859603,-523.03,0.00045479,7]
[394268617,1763413859612,-1434.87,0.00045479,120]
[394268618,1763413859622,-872.54,0.00045479,120]
[394268619,1763413859631,-779.61,0.00045479,120]
[394268620,1763413859640,-519.42,0.00045479,120]
[394268621,1763413859649,-4019.48,0.00045479,3]
[394268622,1763413859658,-157.0,0.000455,120]
[394268623,1763413859668,-153.0,0.00045507,30]
[394268624,1763413859678,-500.0,0.00045753,7]
[394268625,1763413859687,-810.65,0.00045753,2]
[394268626,1763413859696,-564.96191356,0.00045753,120]
[394268627,1763413859704,-1450.45,0.00045753,120]
[394268628,1763413859714,-799.17,0.00045753,60]
[394268629,1763413859723,-523.03,0.00045753,7]
[394268630,1763413859732,-1434.87,0.00045753,120]
[394268631,1763413859742,-872.54,0.00045753,120]
[394268632,1763413859751,-779.61,0.00045753,120]
[394268633,1763413859760,-519.42,0.00045753,120]
[394268634,1763413859770,-4019.48,0.00045753,3]
[394268635,1763413859780,-466.62773132,0.00045794,2]
[394268636,1763413859789,-264.91342199,0.00045794,2]
[394268637,1763413859797,-511.01998414,0.00045794,2]
[394268638,1763413859807,-371.76949043,0.00045794,2]
[394268639,1763413859815,-839.92991637,0.00045794,2]
[394268640,1763413859824,-919.83597145,0.00045794,2]
[394268641,1763413859834,-458.57319096,0.00045794,2]
[394268642,1763413859891,-476.84415957,0.00045794,2]
[394268643,1763413859902,-1491.71553148,0.00045794,2]
[394268644,1763413859915,-1635.26394924,0.00045794,2]
[394268645,1763413859924,-328.88473472,0.00045794,2]
[394268646,1763413859933,-657.73674157,0.00045794,2]
[394268647,1763413859943,-846.8752274,0.00045794,2]
[394268648,1763413859952,-669.18508278,0.00045794,2]
[394268649,1763413859961,-677.35704991,0.00045794,2]
[394268650,1763413859970,-1219.24268984,0.00045794,2]
[394268651,1763413859979,-347.66953321,0.00045794,2]
[394268652,1763413859989,-1183.92613483,0.00045794,2]
[394268653,1763413859998,-575.5498979,0.00045794,2]
[394268654,1763413860007,-1035.98981622,0.00045794,2]
[394268655,1763413860016,-825.43174373,0.00045794,2]
[394268656,1763413860025,-2167.54255971,0.00045794,2]
[394268657,1763413860034,-2552.54482077,0.00045794,2]
[394268658,1763413860042,-2104.75757304,0.0004594,2]
[394268659,1763413860052,-907.28761558,0.00045945,2]
[394268660,1763413860060,-284.63925195,0.0004601,4]
[394268661,1763413860069,-210.32,0.00046027,7]
[394268662,1763413860078,-810.65,0.00046027,2]
[394268663,1763413860088,-1450.45,0.00046027,120]
[394268664,1763413860099,-151.0,0.00046027,120]
[394268665,1763413860108,-237.88724,0.00046027,120]
[394268666,1763413860117,-190.203882,0.00046027,120]
[394268667,1763413860126,-799.17,0.00046027,60]
[394268668,1763413860135,-151.0,0.00046027,120]
[394268669,1763413860145,-169.485445,0.00046027,120]
[394268670,1763413860155,-169.485445,0.00046027,120]
[394268671,1763413860164,-169.485445,0.00046027,120]
[394268672,1763413860173,-169.485454,0.00046027,120]
[394268673,1763413860183,-151.0,0.00046027,120]
[394268674,1763413860193,-523.03,0.00046027,7]
[394268675,1763413860203,-1434.87,0.00046027,120]
[394268676,1763413860212,-872.54,0.00046027,120]
[394268677,1763413860222,-779.61,0.00046027,120]
[394268678,1763413860232,-519.42,0.00046027,120]
[394268679,1763413860242,-4019.48,0.00046027,3]
[394268680,1763413860251,-157.619091,0.00046068,10]
[394268681,1763413860260,-396.93927278,0.00046069,2]
[394268682,1763413860269,-1188.47270702,0.00046157,2]
[394268683,1763413860289,-810.65,0.00046301,2]
[394268684,1763413860312,-1450.45,0.00046301,120]
[394268685,1763413860330,-799.17,0.00046301,60]
[394268686,1763413860347,-523.03,0.00046301,7]
[394268687,1763413860368,-1434.87,0.00046301,120]
[394268688,1763413860386,-872.54,0.00046301,120]
[394268689,1763413860403,-779.61,0.00046301,120]
[394268690,1763413860420,-519.42,0.00046301,120]
[394268691,1763413860436,-4019.48,0.00046301,3]
[394268692,1763413860452,-7680.67755398,0.00046347,28]
[394268693,1763413860469,-591.9925225,0.00046457,2]
[394268694,1763413860489,-383.3947659,0.00046493,30]
[394268695,1763413860503,-171.21,0.000465,14]
[394268696,1763413860518,-810.65,0.00046575,2]
[394268697,1763413860535,-1450.45,0.00046575,120]
[394268698,1763413860549,-799.17,0.00046575,60]
[394268699,1763413860563,-523.03,0.00046575,7]
[394268700,1763413860578,-1434.87,0.00046575,120]
[394268701,1763413860593,-872.54,0.00046575,120]
[394268702,1763413860607,-779.61,0.00046575,120]
[394268703,1763413860620,-519.42,0.00046575,120]
[394268704,1763413860634,-4019.48,0.00046575,3]
[394268705,1763413860648,-502.55573725,0.00046581,60]
[394268706,1763413860662,-1841.75967329,0.00046677,2]
[394268707,1763413860676,-810.65,0.00046849,2]
[394268708,1763413860687,-1450.45,0.00046849,120]
[394268709,1763413860696,-207.55,0.00046849,30]
[394268710,1763413860705,-799.17,0.00046849,60]
[394268711,1763413860714,-523.03,0.00046849,7]
[394268712,1763413860724,-1434.87,0.00046849,120]
[394268713,1763413860733,-872.54,0.00046849,120]
[394268714,1763413860743,-779.61,0.00046849,120]
[394268715,1763413860752,-519.42,0.00046849,120]
[394268716,1763413860762,-4019.48,0.00046849,3]
[394268717,1763413860771,-500.0,0.00046979,30]
[394268718,1763413860780,-3075.86,0.00047,14]
[394268719,1763413860790,-600.0,0.0004704,2]
[394268720,1763413860799,-810.65,0.00047123,2]
[394268721,1763413860808,-1450.45,0.00047123,120]
[394268722,1763413860817,-799.17,0.00047123,60]
[394268723,1763413860828,-523.03,0.00047123,7]
[394268724,1763413860837,-1434.87,0.00047123,120]
[394268725,1763413860847,-872.54,0.00047123,120]
[394268726,1763413860986,-779.61,0.00047123,120]
[394268727,1763413861000,-519.42,0.00047123,120]
[394268728,1763413861011,-4019.48,0.00047123,3]
[394268729,1763413861020,-3386.78524955,0.00047374,2]
[394268730,1763413861030,-810.65,0.00047397,2]
[394268731,1763413861040,-151.0,0.00047397,120]
[394268732,1763413861049,-151.0,0.00047397,120]
[394268733,1763413861057,-151.0,0.00047397,120]
[394268734,1763413861066,-1450.64795926,0.00047397,120]
[394268735,1763413861075,-799.27421972,0.00047397,60]
[394268736,1763413861085,-523.23,0.00047397,7]
[394268737,1763413861095,-1434.96,0.00047397,120]
[394268738,1763413861104,-872.77,0.00047397,120]
[394268739,1763413861113,-779.8,0.00047397,120]
[394268740,1763413861122,-519.49,0.00047397,120]
[394268741,1763413861132,-4019.49697486,0.00047397,3]
[394268742,1763413861141,-151.0,0.0004744,120]
[394268743,1763413861151,-151.0,0.0004744,120]
[394268744,1763413861160,-252.104067,0.0004744,120]
[394268745,1763413861170,-151.0,0.0004744,120]
[394268746,1763413861179,-280.502859,0.0004744,120]
[394268747,1763413861188,-280.502859,0.0004744,120]
[394268748,1763413861196,-151.0,0.0004744,120]
[394268749,1763413861206,-280.502859,0.0004744,120]
[394268750,1763413861215,-151.0,0.0004744,120]
[394268751,1763413861224,-280.50286,0.0004744,120]
[394268752,1763413861233,-151.0,0.0004744,120]
[394268753,1763413861243,-151.0,0.0004744,120]
[394268754,1763413861252,-151.164211,0.0004744,15]
[394268755,1763413861261,-151.164211,0.0004744,15]
[394268756,1763413861270,-151.164211,0.0004744,15]
[394268757,1763413861279,-151.164219,0.0004744,15]
[394268758,1763413861289,-15954.4542515,0.00047505,2]
[394268759,1763413861298,-600.0,0.0004753,2]
[394268760,1763413861307,-1502.76757033,0.0004753,2]
[394268761,1763413861316,-800.0,0.00047532,14]
[394268762,1763413861325,-800.0,0.00047916,14]
[394268763,1763413861336,-800.0,0.00047976,14]
[394268764,1763413861346,-69844.12170438,0.00048,30]
[394268765,1763413861361,-263.50742474,0.00048,5]
[394268766,1763413861371,-1054.02969898,0.00048,5]
[394268767,1763413861380,-747.99083855,0.00048,5]
[394268768,1763413861389,-529.05598358,0.00048,5]
[394268769,1763413861399,-2116.22393431,0.00048,5]
[394268770,1763413861408,-209.94041813,0.00048,5]
[394268771,1763413861416,-839.76167251,0.00048,5]
[394268772,1763413861426,-350.59112593,0.00048,5]
[394268773,1763413861434,-258.95897842,0.00048,5]
[394268774,1763413861443,-1035.8359137,0.00048,5]
[394268775,1763413861452,-742.89257725,0.00048,5]
[394268776,1763413861461,-212.4345072,0.00048,30]
[394268777,1763413861471,-288.88829434,0.00048,5]
[394268778,1763413861479,-1155.55317735,0.00048,5]
[394268779,1763413861488,-2599.99464905,0.00048,5]
[394268780,1763413861497,-4622.21270942,0.00048,5]
[394268781,1763413861506,-910.41468264,0.0004802,2]
[394268782,1763413861516,-800.0,0.00048066,14]
[394268783,1763413861525,-721.67,0.00048169,2]
[394268784,1763413861534,-157.619091,0.000482,2]
[394268785,1763413861543,-178.205916,0.000482,2]
[394268786,1763413861552,-207.55,0.00048219,30]
[394268787,1763413861561,-3288.68370787,0.00048245,2]
[394268788,1763413861571,-800.0,0.00048287,14]
[394268789,1763413861581,-203.0,0.0004837,76]
[394268790,1763413861590,-800.0,0.0004842,14]
[394268791,1763413861599,-166.0,0.00048475,30]
[394268792,1763413861608,-166.0,0.00048475,30]
[394268793,1763413861617,-332.0,0.00048475,30]
[394268794,1763413861626,-332.0,0.00048475,30]
[394268795,1763413861635,-800.0,0.00048538,14]
[394268796,1763413861645,-800.0,0.00048545,14]
[394268797,1763413861654,-502.06396895,0.0004856,18]
[394268798,1763413861663,-543.29,0.000486,30]
[394268799,1763413861672,-800.0,0.00048709,14]
[394268800,1763413861681,-810.36667336,0.00048786,14]
[394268801,1763413861690,-800.0,0.00048796,14]
[394268802,1763413861699,-1000.0,0.00048999,120]
[394268803,1763413861708,-307.89170148,0.00048999,30]
[394268804,1763413861717,-1705529.98362014,0.00049,2]
[394268805,1763413861726,-1341.72898713,0.00049,60]
[394268806,1763413861735,-600.0,0.00049093,90]
[394268807,1763413861745,-3559.9199322,0.00049127,2]